[Event "30th NATO Chess-ch 2019"]
[Site "Berlin"]
[Date "2019.09.17"]
[Round "2.23"]
[White "Pirs, Matjaz"]
[Black "Keough, Robert"]
[Result "1/2-1/2"]
[ECO "D00"]
[WhiteElo "2203"]
[BlackElo "2108"]
[Annotator "NA"]
[PlyCount "124"]
[EventDate "2019.09.16"]
[EventType "swiss"]
[EventCountry "GER"]
[SourceTitle "playchess.com"]
[Source "ChessBase"]
[SourceQuality "1"]
[TimeControl "40/7200:1800"]

1. d4 {[%emt 2:00:00]} Nf6 {[%emt 1:58:43]} 2. Nc3 {[%emt 1:57:43]} d5 {[%emt 1:57:43]} 3. Bf4 {[%emt 1:53:55]} c6 {[%emt 1:48:34]} 4. e3 {[%emt 1:54:13]} Bf5 {[%emt 1:54:13]} 5. Bd3 {[%emt 1:47:20]} (5. Nf3 h6 6. Ne5 Nbd7 7. g4 Bh7 8. h4 Nxe5 9. dxe5 Ne4 10. Nxe4 Bxe4 11. f3 Bh7 12. e6 {1-0 (57) Bortnyk,O (2610)-Dreev,A (2653) Riadh 2017}) 5... Bxd3 {[%emt 1:46:43]} 6. cxd3 {[%emt 1:50:27] D00: 1 d4 d5: Unusual lines} e6 {[%emt 1:46:35]} 7. Nf3 {[%emt 1:46:13]} Be7 {[%emt 1:44:54]} 8. Ne5 {[%emt 1:45:22]} O-O {[%emt 1:45:22]} 9. O-O {[%emt 1:45:05]} Nbd7 {[%emt 1:43:48]} 10. h3 {[%emt 1:44:11]} Rc8 $146 {[%emt 1:44:11]} ({Predecessor:} 10... c5 11. dxc5 Bxc5 12. d4 {½-½ (76) Newton,R (2016)-Johnson,P (1873) Wakefield 2016}) 11. Rc1 {[%emt 1:38:11]} c5 {[%emt 1:40:37]} 12. Nxd7 {[%emt 1:37:30]} Nxd7 {[%emt 1:34:48]} 13. dxc5 {[%emt 1:16:10]} Bxc5 {[%emt 1:29:28]} 14. d4 {[%emt 1:14:51]} Bb4 {[%emt 1:28:52]} 15. Qb3 {[%emt 1:09:07]} Qe7 {[%emt 1:09:41]} 16. a3 {[%emt 1:02:11]} Bxc3 {[%emt 1:02:11]} 17. Rxc3 {[%emt 1:01:27]} Rxc3 18. Qxc3 {[%emt 0:58:05]} g5 {[%emt 0:46:30]} 19. Bg3 $14 {[%emt 0:54:31]} Nb8 {[%emt 0:54:31]} 20. Bxb8 {[%emt 0:43:22]} Rxb8 {[%emt 0:43:16]} 21. Rc1 {[%emt 0:48:11]} Kg7 {[%emt 0:40:06]} 22. b4 {[%emt 0:46:50]} Rd8 {[%emt 0:46:50]} 23. a4 {[%emt 0:38:05]} Rd6 {[%emt 0:44:59]} 24. b5 {[%emt 0:35:58]} a6 {[%emt 0:35:53]} 25. Qc5 {[%emt 0:35:53]} axb5 {[%emt 0:35:40]} 26. axb5 {[%emt 0:41:27]} Qd8 {[%emt 0:41:27]} 27. Ra1 {[%emt 0:34:37]} b6 {[%emt 0:33:45]} 28. Qb4 {[%emt 0:33:45]} Rd7 {[%emt 0:33:30]} 29. Rc1 {[%emt 0:28:11]} Rc7 {[%emt 0:31:09]} 30. Rc6 {[%emt 0:31:09]} Rxc6 {[%emt 0:29:01]} 31. bxc6 {[%emt 0:29:01]} Qc7 {[%emt 0:26:21]} 32. Qa4 {[%emt 0:28:58]} Kf6 {[%emt 0:27:33]} 33. g3 {[%emt 0:27:33]} Ke7 {[%emt 0:20:21]} 34. Qb4+ {[%emt 0:27:13]} Kf6 {[%emt 0:27:07]} 35. Qa4 {[%emt 0:19:47]} h5 {[%emt 0:25:22]} 36. Kg2 {[%emt 0:25:22]} Ke7 {[%emt 0:24:45]} 37. Qb4+ {[%emt 0:18:42]} Kf6 {[%emt 0:24:33]} 38. Qa4 {[%emt 0:24:33]} Ke7 {[%emt 0:18:34]} 39. Qb4+ {[%emt 0:18:15]} Ke8 {[%emt 0:16:40]} 40. Qa4 {[%emt 0:07:25]} Kd8 {[%emt 0:07:25]} 41. Kf3 {[%emt 0:00:36]} f5 {[%emt 0:03:26]} 42. Ke2 {[%emt 0:33:26]} Qc8 {[%emt 0:25:37]} 43. Kd3 {[%emt 0:20:38]} Kc7 {[%emt 0:26:52]} 44. f3 {[%emt 0:14:47]} Qb8 {[%emt 0:24:13]} 45. g4 {[%emt 0:24:13]} hxg4 {[%emt 0:12:28]} 46. hxg4 {[%emt 0:12:22]} fxg4 {[%emt 0:18:34]} 47. fxg4 {[%emt 0:12:16]} b5 {[%emt 0:18:07]} 48. Qb4 {[%emt 0:10:07]} Kxc6 {[%emt 0:17:28]} 49. Qc5+ {[%emt 0:09:24]} Kd7 {[%emt 0:17:16]} 50. Kc3 {[%emt 0:08:37]} Qc7 {[%emt 0:13:27]} 51. Kb4 {[%emt 0:08:26]} Qg3 {[%emt 0:08:26]} 52. Qxb5+ {[%emt 0:08:18]} Ke7 {[%emt 0:08:18]} 53. Qe2 {[%emt 0:13:03]} e5 {[%emt 0:07:49]} 54. Kc5 {[%emt 0:06:16]} e4 {[%emt 0:06:16]} 55. Kxd5 {[%emt 0:04:52]} Qf3 {[%emt 2:04:29]} 56. Qd2 {[%emt 0:07:05]} Qxg4 57. Qb4+ {[%emt 0:03:09]} Kf7 {[%emt 0:04:21]} 58. Qb7+ {[%emt 0:04:21]} Kg6 {[%emt 0:04:00]} 59. Qc6+ {[%emt 0:04:00]} Kg7 {[%emt 0:02:35]} 60. Qc7+ {[%emt 0:02:35]} Kg6 {[%emt 0:02:27]} 61. Qc6+ {[%emt 0:02:27]} Kg7 {[%emt 0:02:23]} 62. Qc7+ {[%emt 0:02:23]} Kg6 {[%emt 0:02:21]} 1/2-1/2

[Event "30th NATO Chess-ch 2019"]
[Site "Berlin"]
[Date "2019.09.17"]
[Round "2.24"]
[White "Cichy, Kamil"]
[Black "Fielding, Michael"]
[Result "1-0"]
[ECO "B41"]
[WhiteElo "2106"]
[BlackElo "1760"]
[Annotator "NA"]
[PlyCount "65"]
[EventDate "2019.09.16"]
[EventType "swiss"]
[EventCountry "GER"]
[SourceTitle "playchess.com"]
[Source "ChessBase"]
[SourceQuality "1"]
[TimeControl "40/7200:1800"]

1. e4 {[%emt 2:00:00]} c5 {[%emt 1:57:52]} 2. Nf3 {[%emt 1:59:31]} e6 {[%emt 1:56:40]} 3. c4 {[%emt 1:53:42]} Nc6 {[%emt 1:55:17]} 4. Nc3 {[%emt 1:53:23]} Nf6 {[%emt 1:53:37]} 5. Be2 {[%emt 1:53:37]} Be7 {[%emt 1:49:21]} 6. O-O {[%emt 1:50:13]} a6 {[%emt 1:47:46]} 7. d4 {[%emt 1:47:50]} cxd4 {[%emt 1:46:29] dxe3 Nd4} 8. Nxd4 {[%emt 1:46:55]} Qc7 {[%emt 1:46:55]} 9. Be3 {[%emt 1:45:03]} O-O {[%emt 1:40:01]} 10. Rc1 {[%emt 1:41:48]} Rd8 $16 {[%emt 1:34:09]} 11. f3 {[%emt 1:34:41]} Nxd4 {[%emt 1:26:45]} 12. Qxd4 {[%emt 1:26:45]} b6 {[%emt 1:25:27]} 13. Qxb6 {[%emt 1:26:41]} Qc6 {[%emt 1:24:06]} 14. e5 {[%emt 1:20:27]} Ne8 {[%emt 1:23:12]} 15. f4 {[%emt 1:23:12]} Bb7 {[%emt 1:17:14]} 16. Bf3 {[%emt 1:19:10]} Qxb6 {[%emt 1:18:52]} 17. Bxb6 {[%emt 1:15:06]} Rdb8 {[%emt 1:18:34]} 18. c5 {[%emt 1:18:34]} Bc6 {[%emt 1:15:00]} 19. Rcd1 {[%emt 1:15:00]} Bd8 {[%emt 1:12:16]} 20. Bxc6 {[%emt 1:12:16]} dxc6 {[%emt 0:53:42]} 21. Na4 {[%emt 0:53:28]} Nc7 {[%emt 0:59:24]} 22. Rd6 {[%emt 0:59:24]} Nd5 {[%emt 0:57:17]} 23. Rxc6 {[%emt 0:43:50]} Nb4 {[%emt 0:55:53]} 24. Rd6 {[%emt 0:42:00]} Be7 {[%emt 0:42:00]} 25. Rd7 {[%emt 0:52:12]} Nd5 {[%emt 0:38:09]} 26. g3 {[%emt 0:50:12]} Kf8 {[%emt 0:47:48]} 27. Rc1 {[%emt 0:47:48]} Ke8 {[%emt 0:18:57]} 28. Ra7 {[%emt 0:18:33]} Rxa7 {[%emt 0:18:33]} 29. Bxa7 {[%emt 0:18:30]} Rb4 {[%emt 0:39:53]} 30. b3 {[%emt 0:12:25]} Bd8 {[%emt 0:12:25]} 31. c6 {[%emt 0:09:44]} Bc7 {[%emt 0:09:44]} 32. Nc5 {[%emt 0:08:50]} a5 {[%emt 0:08:50]} 33. Nb7 {[%emt 0:06:53]} 1-0

[Event "30th NATO Chess-ch 2019"]
[Site "Berlin"]
[Date "2019.09.17"]
[Round "2.25"]
[White "Abbate, Giovanni"]
[Black "Onley, David E"]
[Result "1/2-1/2"]
[ECO "B25"]
[WhiteElo "1600"]
[BlackElo "2103"]
[Annotator "NA"]
[PlyCount "86"]
[EventDate "2019.09.16"]
[EventType "swiss"]
[EventCountry "GER"]
[SourceTitle "playchess.com"]
[Source "ChessBase"]
[SourceQuality "1"]
[TimeControl "40/7200:1800"]

1. e4 {[%emt 2:00:00]} c5 {[%emt 1:59:55]} 2. g3 {[%emt 1:58:10]} Nc6 {[%emt 1:59:24]} 3. Bg2 {[%emt 1:57:59]} g6 {[%emt 1:59:04]} 4. Nc3 {[%emt 1:57:11]} Bg7 {[%emt 1:58:51]} 5. d3 {[%emt 1:56:47]} d6 {[%emt 1:58:15]} 6. Nf3 {[%emt 1:58:15]} e6 {[%emt 1:56:23]} 7. a3 {[%emt 1:50:04]} Nge7 {[%emt 1:55:59]} 8. Bd2 {[%emt 1:55:59]} O-O {[%emt 1:49:44]} 9. O-O {[%emt 1:49:44]} Bd7 {[%emt 1:47:23]} 10. Rb1 {[%emt 1:47:23]} a6 {[%emt 1:39:48]} 11. Qc1 {[%emt 1:44:47]} Nd4 {[%emt 1:33:35]} 12. Nxd4 {[%emt 1:33:35]} cxd4 {[%emt 1:40:44]} 13. Ne2 {[%emt 1:40:05]} Rc8 {[%emt 1:32:29]} 14. c4 {[%emt 1:32:29]} b5 {[%emt 1:24:04]} 15. b3 {[%emt 1:28:57]} Nc6 {[%emt 1:20:18]} 16. f4 {[%emt 1:20:18]} f5 {[%emt 1:19:38]} 17. exf5 {[%emt 1:17:51]} Rxf5 {[%emt 1:17:51]} 18. Kh1 {[%emt 1:15:04]} Ne7 {[%emt 1:12:31]} 19. Qb2 {[%emt 1:01:59]} Qb6 {[%emt 1:05:37]} 20. Qa2 {[%emt 0:56:54]} Rff8 {[%emt 0:56:54]} 21. Ng1 {[%emt 0:49:34]} Nf5 {[%emt 0:59:18]} 22. Rfe1 {[%emt 0:59:18]} Rce8 {[%emt 0:55:01]} 23. Nf3 {[%emt 0:38:01]} Bc6 {[%emt 0:53:40]} 24. Ng5 {[%emt 0:53:40]} Qb7 {[%emt 0:45:15]} 25. Bc1 {[%emt 0:45:15]} e5 {[%emt 0:30:12]} 26. Bxc6 {[%emt 0:28:11]} Qxc6+ {[%emt 0:28:11]} 27. Ne4 {[%emt 0:27:03]} d5 {[%emt 0:28:42]} 28. cxd5 {[%emt 0:25:50]} Qxd5 {[%emt 0:25:50]} 29. Qg2 {[%emt 0:24:38]} Kh8 {[%emt 0:26:36]} 30. Re2 {[%emt 0:22:00]} Rc8 {[%emt 0:22:00]} 31. Rc2 {[%emt 0:24:38]} Ne3 {[%emt 0:21:23]} 32. Bxe3 {[%emt 0:18:57]} dxe3 {[%emt 0:20:54]} 33. fxe5 {[%emt 0:18:29]} Qxd3 {[%emt 0:16:23]} 34. Rbc1 {[%emt 0:16:23]} Rxc2 {[%emt 0:09:10]} 35. Qxc2 {[%emt 0:09:10]} Qxc2 {[%emt 0:09:47]} 36. Rxc2 {[%emt 0:08:50]} Bxe5 {[%emt 0:09:33]} 37. Kg2 {[%emt 0:08:37]} Bd4 {[%emt 0:07:25]} 38. Ng5 {[%emt 0:07:25]} Rf6 {[%emt 0:04:26]} 39. Rc8+ {[%emt 0:02:39]} Kg7 {[%emt 0:04:18]} 40. Rc7+ {[%emt 0:04:18]} Kg8 {[%emt 0:02:28]} 41. Rc8+ {[%emt 0:01:49]} Kg7 {[%emt 0:01:26]} 42. Rc7+ {[%emt 0:00:11]} Kh8 {[%emt 0:23:55]} 43. Rc8+ {[%emt 0:30:46]} Kg7 {[%emt 0:23:47]} 1/2-1/2

[Event "30th NATO Chess-ch 2019"]
[Site "Berlin"]
[Date "2019.09.17"]
[Round "2.26"]
[White "Sycz, Dariusz"]
[Black "Vael, Steve"]
[Result "1-0"]
[ECO "D94"]
[WhiteElo "2215"]
[BlackElo "1602"]
[Annotator "NA"]
[PlyCount "75"]
[EventDate "2019.09.16"]
[EventType "swiss"]
[EventCountry "GER"]
[SourceTitle "playchess.com"]
[Source "ChessBase"]
[SourceQuality "1"]
[TimeControl "40/7200:1800"]

1. d4 {[%emt 2:00:00]} c6 {[%emt 1:58:38]} 2. Nf3 {[%emt 1:58:38]} d5 {[%emt 1:56:26]} 3. c4 {[%emt 1:56:26]} g6 {[%emt 1:51:16]} 4. Nc3 {[%emt 1:56:48]} Nf6 {[%emt 1:48:05]} 5. e3 {[%emt 1:50:06]} Bg7 {[%emt 1:50:06]} 6. Bd3 {[%emt 1:46:34]} Bg4 {[%emt 1:40:28]} 7. h3 {[%emt 1:45:07]} Bxf3 {[%emt 1:45:07]} 8. Qxf3 {[%emt 1:44:52]} e6 {[%emt 1:36:44]} 9. O-O {[%emt 1:36:44]} O-O {[%emt 1:35:36]} 10. b3 {[%emt 1:34:06]} Re8 {[%emt 1:25:53] D94: Grünfeld: 4 Nf3 Bg7 5 e3} 11. Bb2 {[%emt 1:25:53]} Na6 $146 {[%emt 1:23:40]} ({Predecessor:} 11... Nbd7 12. Qe2 a6 13. Rac1 Rc8 14. Rfd1 Qc7 15. f4 dxc4 16. Bxc4 b5 17. Bd3 Qa7 18. Ne4 Nxe4 19. Bxe4 c5 20. dxc5 Nxc5 {½-½ (70) Mamedyarov,S (2764)-Kamsky,G (2762) Tashkent 2012}) 12. Rad1 {[%emt 1:29:15]} Nc7 {[%emt 1:29:15]} 13. e4 {[%emt 1:18:20]} Qe7 {[%emt 1:08:17]} 14. e5 {[%emt 1:12:16]} Nd7 {[%emt 1:12:16]} 15. Qe2 {[%emt 1:06:11]} a6 {[%emt 0:56:22]} 16. f4 {[%emt 0:56:22]} Rad8 {[%emt 0:46:37]} 17. Nb1 {[%emt 0:46:37]} Rb8 {[%emt 0:40:53]} 18. Ba3 {[%emt 0:40:53]} Qd8 {[%emt 0:39:52]} 19. Bd6 {[%emt 0:39:52]} Bf8 {[%emt 0:58:23]} 20. c5 $14 {[%emt 0:57:44]} ({White should play} 20. Qf2 $16) 20... Ra8 {[%emt 0:33:07]} 21. a4 {[%emt 0:55:20]} f5 {[%emt 0:55:20]} 22. Nd2 {[%emt 0:53:08]} Rc8 {[%emt 0:26:46]} 23. Nf3 {[%emt 0:26:46]} Bh6 {[%emt 0:26:00]} 24. Qd2 {[%emt 0:47:04]} Na8 {[%emt 0:24:11]} 25. g3 {[%emt 0:24:11]} Nb8 {[%emt 0:45:22]} 26. b4 {[%emt 0:40:24]} Qd7 {[%emt 0:40:24]} 27. Rb1 {[%emt 0:17:36]} Bf8 {[%emt 0:38:21]} 28. b5 {[%emt 0:14:16]} Nc7 {[%emt 0:36:16]} 29. bxa6 {[%emt 0:35:14]} Ncxa6 {[%emt 0:11:51]} 30. Rb6 {[%emt 0:11:51]} Bxd6 {[%emt 0:09:58]} 31. exd6 {[%emt 0:34:27]} Qg7 {[%emt 0:09:17]} 32. Rfb1 {[%emt 0:09:17]} Nd7 {[%emt 0:33:38]} 33. Rxb7 {[%emt 0:33:15]} Naxc5 {[%emt 0:05:03]} 34. dxc5 {[%emt 0:32:53]} Rb8 {[%emt 0:04:55]} 35. Ne5 {[%emt 0:32:21]} Rxb7 {[%emt 0:29:51]} 36. Rxb7 {[%emt 1:02:10]} Qxe5 {[%emt 0:28:42]} 37. fxe5 {[%emt 1:01:50]} Nxe5 {[%emt 0:28:35]} 38. Qb2 {[%emt 0:28:35]} 1-0

[Event "30th NATO Chess-ch 2019"]
[Site "Berlin"]
[Date "2019.09.17"]
[Round "2.27"]
[White "Tikerpuu, Mati"]
[Black "Nikomanis, Andreas"]
[Result "0-1"]
[ECO "A00"]
[WhiteElo "1717"]
[BlackElo "2053"]
[Annotator "NA"]
[PlyCount "70"]
[EventDate "2019.09.16"]
[EventType "swiss"]
[EventCountry "GER"]
[SourceTitle "playchess.com"]
[Source "ChessBase"]
[SourceQuality "1"]
[TimeControl "40/7200:1800"]

1. b4 {[%emt 1:59:53]} c6 {[%emt 1:57:54]} 2. Bb2 {[%emt 1:57:55]} a5 {[%emt 1:56:32]} 3. a3 {[%emt 1:57:10]} axb4 {[%emt 1:56:13]} 4. axb4 {[%emt 1:57:04]} Rxa1 {[%emt 1:56:59]} 5. Bxa1 {[%emt 1:56:59]} Qb6 {[%emt 1:55:58]} 6. Nf3 {[%emt 1:49:42]} Qxb4 {[%emt 1:54:45]} 7. e3 {[%emt 1:54:45]} d5 {[%emt 1:53:35]} 8. Be2 {[%emt 1:46:40]} Nd7 {[%emt 1:50:00]} 9. O-O {[%emt 1:45:51]} Ngf6 {[%emt 1:49:52]} 10. d4 {[%emt 1:49:52]} g6 {[%emt 1:43:56]} 11. Nbd2 {[%emt 1:48:14]} Bg7 {[%emt 1:42:50]} 12. c4 {[%emt 1:41:25]} O-O {[%emt 1:43:57]} 13. Qc2 {[%emt 1:40:19]} Qd6 {[%emt 1:37:03]} 14. Bb2 {[%emt 1:30:31]} e6 {[%emt 1:24:56]} 15. Ra1 {[%emt 1:27:38]} Rd8 {[%emt 1:27:38]} 16. Ra8 {[%emt 1:24:03]} Qc7 {[%emt 1:21:31]} 17. c5 {[%emt 1:04:47]} b6 {[%emt 1:04:47]} 18. Bc3 {[%emt 1:13:30]} Qb7 {[%emt 0:55:24]} 19. Qa2 {[%emt 0:49:58]} bxc5 {[%emt 1:00:09]} 20. Ra7 {[%emt 0:42:49]} Qb8 {[%emt 0:58:37]} 21. Qa5 {[%emt 0:40:28]} Re8 {[%emt 0:54:41]} 22. dxc5 {[%emt 0:40:02]} Bb7 {[%emt 0:48:03]} 23. Ne5 {[%emt 0:26:32]} Nxe5 {[%emt 0:26:32]} 24. Bxe5 {[%emt 0:25:38]} Qxe5 {[%emt 0:25:38]} 25. Rxb7 {[%emt 0:25:30]} Rf8 {[%emt 0:25:30]} 26. Nf3 {[%emt 0:20:18]} Qe4 {[%emt 0:23:58]} 27. Qc7 {[%emt 0:12:59]} Qc2 {[%emt 0:22:51]} 28. Nd4 {[%emt 0:11:37]} Qc1+ {[%emt 0:20:54]} 29. Bf1 {[%emt 0:11:29]} Ne4 {[%emt 0:11:29]} 30. Nxe6 {[%emt 0:17:19]} Nd2 {[%emt 0:16:56]} 31. h3 {[%emt 0:16:56]} Qxf1+ {[%emt 0:07:41]} 32. Kh2 {[%emt 0:07:36]} Qxf2 {[%emt 0:14:31]} 33. Qf4 {[%emt 0:01:16]} Be5 {[%emt 0:01:16]} 34. Qxe5 {[%emt 0:13:49]} Nf3+ {[%emt 0:13:49]} 35. Kh1 {[%emt 0:00:07]} Qg1# {--- Nh2+ --- Qb1+ Ra1 --- Rb5 c5+ --- Rfa8+ --- Nb8+ --- Ra2+} 0-1

[Event "30th NATO Chess-ch 2019"]
[Site "Berlin"]
[Date "2019.09.17"]
[Round "2.28"]
[White "Kristensen, Steen Rikard"]
[Black "Nielsen, Jan Mose"]
[Result "1/2-1/2"]
[ECO "A21"]
[WhiteElo "2022"]
[BlackElo "2044"]
[Annotator "NA"]
[PlyCount "36"]
[EventDate "2019.09.16"]
[EventType "swiss"]
[EventCountry "GER"]
[SourceTitle "playchess.com"]
[Source "ChessBase"]
[SourceQuality "1"]
[TimeControl "40/7200:1800"]

1. c4 {[%emt 1:59:54]} e5 {[%emt 1:59:26]} 2. Nc3 {[%emt 1:59:44]} Be7 {[%emt 1:54:40]} 3. g3 {[%emt 1:59:32]} Nc6 {[%emt 1:53:26]} 4. Bg2 {[%emt 1:53:26]} d6 {[%emt 1:59:22]} 5. e3 {[%emt 1:52:42]} Be6 {[%emt 1:59:07]} 6. b3 {[%emt 1:58:32]} Nf6 {[%emt 1:58:32]} 7. Nge2 {[%emt 1:58:22]} Qd7 {[%emt 1:46:00]} 8. d4 {[%emt 1:58:01]} exd4 {[%emt 1:45:31]} 9. Nxd4 {[%emt 1:45:31]} h5 {[%emt 1:32:43]} 10. Nxe6 {[%emt 1:54:49]} Qxe6 {[%emt 1:28:56]} 11. Nd5 {[%emt 1:28:56]} O-O-O {[%emt 1:46:54]} 12. Bb2 {[%emt 1:10:53]} Kb8 {[%emt 1:44:36]} 13. Qf3 {[%emt 1:38:51]} Ne5 {[%emt 0:43:26]} 14. Bxe5 {[%emt 1:36:12]} Qxe5 {[%emt 0:43:20]} 15. O-O {[%emt 1:36:02]} Nxd5 {[%emt 0:43:17]} 16. Qxd5 {[%emt 0:43:17]} Qxd5 {[%emt 0:33:22]} 17. cxd5 {[%emt 1:35:44]} h4 {[%emt 0:28:28]} 18. g4 {[%emt 1:34:36]} Bf6 {[%emt 0:26:29]} 1/2-1/2

[Event "30th NATO Chess-ch 2019"]
[Site "Berlin"]
[Date "2019.09.17"]
[Round "2.29"]
[White "Schott, Guido"]
[Black "De Cat, Ben"]
[Result "1/2-1/2"]
[ECO "A54"]
[WhiteElo "2043"]
[BlackElo "1891"]
[Annotator "NA"]
[PlyCount "101"]
[EventDate "2019.09.16"]
[EventType "swiss"]
[EventCountry "GER"]
[SourceTitle "playchess.com"]
[Source "ChessBase"]
[SourceQuality "1"]
[TimeControl "40/7200:1800"]

1. Nf3 {[%emt 1:59:49]} Nf6 {[%emt 1:59:49]} 2. c4 {[%emt 1:59:15]} d6 {[%emt 1:58:57]} 3. d4 {[%emt 1:58:57]} c6 {[%emt 1:58:35]} 4. Nc3 {[%emt 1:58:35]} Nbd7 {[%emt 1:58:18]} 5. g3 {[%emt 1:49:20]} e5 {[%emt 1:49:20]} 6. Bg2 {[%emt 1:48:57]} Be7 {[%emt 1:56:23]} 7. O-O {[%emt 1:48:38]} Qc7 {[%emt 1:48:38]} 8. Qc2 {[%emt 1:55:45]} O-O {[%emt 1:55:00]} 9. b3 {[%emt 1:42:26]} Re8 {[%emt 1:54:07]} 10. Bb2 {[%emt 1:40:26]} Nf8 {[%emt 1:40:26]} 11. Rad1 {[%emt 1:20:01]} Bg4 {[%emt 1:50:52]} 12. dxe5 {[%emt 1:13:11]} dxe5 {[%emt 1:50:12]} 13. Ne4 {[%emt 1:11:09]} Ng6 {[%emt 1:11:09]} 14. h3 {[%emt 1:02:05]} Nxe4 {[%emt 1:02:05]} 15. hxg4 {[%emt 1:37:33]} Ng5 {[%emt 0:58:04]} 16. Nxg5 {[%emt 0:50:34]} Bxg5 {[%emt 0:50:34]} 17. Qf5 {[%emt 0:49:36]} f6 {[%emt 0:49:36]} 18. e3 {[%emt 0:24:23]} Rad8 {[%emt 1:18:01]} 19. Be4 {[%emt 0:19:35]} Kf7 {[%emt 1:10:34]} 20. Qf3 {[%emt 0:14:35]} Rxd1 {[%emt 1:07:03]} 21. Rxd1 {[%emt 0:14:23]} Rd8 {[%emt 0:14:23]} 22. Kg2 {[%emt 0:12:37]} Ke8 {[%emt 0:12:37]} 23. Qe2 {[%emt 0:11:38]} Rxd1 {[%emt 0:58:29]} 24. Qxd1 {[%emt 0:11:32]} Qd7 {[%emt 0:55:15]} 25. Qe2 {[%emt 0:55:15]} Kf7 {[%emt 0:10:44]} 26. c5 {[%emt 0:08:04]} Kf8 {[%emt 0:36:28]} 27. b4 {[%emt 0:06:37]} Bh6 {[%emt 0:34:53]} 28. a4 {[%emt 0:06:03]} Ne7 {[%emt 0:34:02]} 29. b5 {[%emt 0:05:01]} g6 {[%emt 0:05:01]} 30. Bc3 {[%emt 0:33:20]} Bg7 {[%emt 0:30:20]} 31. Bf3 {[%emt 0:30:20]} f5 {[%emt 0:29:33]} 32. gxf5 {[%emt 0:02:27]} gxf5 {[%emt 0:29:20]} 33. Qc4 {[%emt 0:29:20]} e4 {[%emt 0:28:39]} 34. Bxg7+ {[%emt 0:01:34]} Kxg7 {[%emt 0:28:27]} 35. Be2 {[%emt 0:01:32]} Nd5 {[%emt 0:01:32]} 36. Qd4+ {[%emt 0:01:31]} Nf6 {[%emt 0:22:04]} 37. Qe5 {[%emt 0:01:21]} Kg6 {[%emt 0:21:20]} 38. Bc4 {[%emt 0:01:05]} Qd1 {[%emt 0:20:47]} 39. Qf4 {[%emt 0:20:47]} Nh5 {[%emt 0:18:47]} 40. Qd6+ {[%emt 0:00:40]} Qxd6 {[%emt 0:18:23]} 41. cxd6 {[%emt 0:00:38]} Kf6 {[%emt 0:17:54]} 42. Kh3 {[%emt 0:19:57]} Ng7 {[%emt 0:44:42]} 43. g4 {[%emt 0:19:01]} fxg4+ {[%emt 0:41:48]} 44. Kxg4 {[%emt 0:18:44]} Ne6 {[%emt 0:41:14]} 45. d7 {[%emt 0:09:45]} Nd8 {[%emt 0:39:14]} 46. Kf4 {[%emt 0:07:36]} Ke7 {[%emt 0:38:50]} 47. Kxe4 {[%emt 0:38:50]} Kxd7 {[%emt 0:38:26]} 48. Kf5 {[%emt 0:05:29]} Ke7 {[%emt 0:36:41]} 49. Bg8 {[%emt 0:05:13]} Nf7 {[%emt 0:34:31]} 50. Bxh7 {[%emt 0:04:52]} cxb5 {[%emt 0:34:19]} 51. axb5 {[%emt 0:04:31]} 1/2-1/2

[Event "30th NATO Chess-ch 2019"]
[Site "Berlin"]
[Date "2019.09.17"]
[Round "2.30"]
[White "Stankowski, Aleksander"]
[Black "Sarnovska, Eira"]
[Result "0-1"]
[ECO "A08"]
[WhiteElo "2022"]
[BlackElo "1669"]
[Annotator "NA"]
[PlyCount "86"]
[EventDate "2019.09.16"]
[EventType "swiss"]
[EventCountry "GER"]
[SourceTitle "playchess.com"]
[Source "ChessBase"]
[SourceQuality "1"]
[TimeControl "40/7200:1800"]

1. Nf3 {[%emt 2:00:00]} d5 {[%emt 1:59:48]} 2. g3 {[%emt 1:59:28]} Nf6 {[%emt 1:59:31]} 3. Bg2 {[%emt 1:59:31]} g6 4. O-O {[%emt 1:58:54]} Bg7 {[%emt 1:58:55]} 5. d3 {[%emt 1:58:38]} c5 {[%emt 1:58:38]} 6. Nc3 {[%emt 1:58:11]} Nc6 {[%emt 1:57:28]} 7. e4 {[%emt 1:56:53]} dxe4 {[%emt 1:56:53]} 8. dxe4 {[%emt 1:56:33]} O-O {[%emt 1:55:26]} 9. Be3 {[%emt 1:45:40]} Qa5 {[%emt 1:40:03]} 10. Nd2 {[%emt 1:38:54]} Ng4 {[%emt 1:25:56]} 11. Nb3 {[%emt 1:28:55]} Nxe3 {[%emt 1:16:59]} 12. fxe3 {[%emt 1:23:20]} Qb4 {[%emt 1:23:20]} 13. Nd5 {[%emt 1:18:01]} Qc4 {[%emt 1:00:42]} 14. Rf4 {[%emt 1:00:42]} Be5 {[%emt 0:57:58]} 15. Bf1 {[%emt 1:12:26]} Qa4 {[%emt 0:52:35]} 16. Nxc5 {[%emt 1:05:00]} Qa5 {[%emt 1:05:00]} 17. Nb3 {[%emt 1:01:59]} Qd8 {[%emt 0:48:41]} 18. Rf2 {[%emt 0:54:11]} Bxb2 {[%emt 0:54:11]} 19. Rb1 {[%emt 0:47:04]} Bg7 {[%emt 0:46:58]} 20. Rd2 {[%emt 0:46:58]} Bd7 {[%emt 0:39:05]} 21. Nc5 {[%emt 0:50:33]} Ne5 {[%emt 0:32:48]} 22. Nxb7 {[%emt 0:45:15]} Bg4 {[%emt 0:28:03]} 23. Be2 {[%emt 0:42:32]} Bxe2 {[%emt 0:27:16]} 24. Qxe2 {[%emt 0:42:20]} Qe8 {[%emt 0:26:41]} 25. Nc7 {[%emt 0:40:03]} Qc6 {[%emt 0:26:31]} 26. Nxa8 Rxa8 {[%emt 0:39:31]} 27. Rd8+ {[%emt 0:20:41]} Rxd8 {[%emt 0:20:41]} 28. Nxd8 {[%emt 0:20:35]} Qxe4 {[%emt 0:18:47]} 29. Rb8 {[%emt 0:18:47]} Bf8 {[%emt 0:17:35]} 30. h3 {[%emt 0:14:22]} Nf3+ {[%emt 0:16:51]} 31. Kf2 {[%emt 0:16:51]} Ng5 {[%emt 0:14:43]} 32. h4 {[%emt 0:13:32]} Qf5+ {[%emt 0:12:41]} 33. Ke1 {[%emt 0:13:04]} Ne4 {[%emt 0:11:54]} 34. Rb5 {[%emt 0:04:36]} Qh3 {[%emt 0:04:36]} 35. Qf3 {[%emt 0:03:58]} Nd6 {[%emt 0:05:11]} 36. Rb8 {[%emt 0:05:11]} Qd7 {[%emt 0:07:11]} 37. Nc6 {[%emt 0:04:17]} Nc4 {[%emt 0:03:43]} 38. Qd5 {[%emt 0:00:50]} Nd6 {[%emt 0:02:44]} 39. Ne5 {[%emt 0:02:44]} Qc7 {[%emt 0:00:42]} 40. Qb3 {[%emt 0:00:05]} Qa5+ {[%emt 0:01:15]} 41. Ke2 {[%emt 0:26:05]} Qxe5 {[%emt 0:31:04]} 42. c4 {[%emt 0:31:04]} Nf5 {[%emt 0:25:51]} 43. g4 {[%emt 0:23:00]} Nd4+ {[%emt 0:29:12]} 0-1